[Event "*** Titled Tuesday 3|2 Blitz"]
[Site "Chess.com"]
[Date "2016.10.04"]
[Round "1"]
[White "brightthunder"]
[Black "AdrianaNikolova"]
[Result "0-1"]
[WhiteElo "2390"]
[BlackElo "2252"]
[TimeControl "180+2"]
[EndTime "11:11:29 PDT"]
[Termination "AdrianaNikolova won by checkmate"]

1. e4 {[%clk 0:03:01.9]} 1... c5 {[%clk 0:02:59.8]} 2. Nf3 {[%clk 0:03:02.7]}
2... Nc6 {[%clk 0:03:00.7]} 3. d4 {[%clk 0:03:03.1]} 3... cxd4 {[%clk
0:03:02.6]} 4. Nxd4 {[%clk 0:03:05]} 4... Nf6 {[%clk 0:03:03.6]} 5. Nc3 {[%clk
0:03:06.2]} 5... d6 {[%clk 0:03:04.7]} 6. f3 {[%clk 0:03:06.4]} 6... e5 {[%clk
0:03:04.1]} 7. Nb3 {[%clk 0:03:06.6]} 7... Be7 {[%clk 0:03:04.4]} 8. Be3 {[%clk
0:03:06.5]} 8... O-O {[%clk 0:03:05]} 9. Qd2 {[%clk 0:03:05.8]} 9... Be6 {[%clk
0:03:04.5]} 10. Nd5 {[%clk 0:03:05.6]} 10... Bxd5 {[%clk 0:02:43.9]} 11. exd5
{[%clk 0:03:07.5]} 11... Nb8 {[%clk 0:02:45.5]} 12. O-O-O {[%clk 0:03:06.1]}
12... Nbd7 {[%clk 0:02:44.7]} 13. Kb1 {[%clk 0:02:59.7]} 13... a5 {[%clk
0:02:42.9]} 14. g4 {[%clk 0:02:40.4]} 14... b6 {[%clk 0:02:41.4]} 15. Bb5 {[%clk
0:02:33.7]} 15... Nc5 {[%clk 0:02:41.9]} 16. Bc6 {[%clk 0:02:28.4]} 16... Ra7
{[%clk 0:02:38.6]} 17. Nc1 {[%clk 0:02:20.2]} 17... Nfd7 {[%clk 0:02:16]} 18.
Ne2 {[%clk 0:02:16.7]} 18... Nb8 {[%clk 0:02:16.5]} 19. Bb5 {[%clk 0:02:06.4]}
19... f5 {[%clk 0:02:10.3]} 20. Nc3 {[%clk 0:01:53.6]} 20... f4 {[%clk 0:02:00]}
21. Bxc5 {[%clk 0:01:26.7]} 21... bxc5 {[%clk 0:02:01.9]} 22. Qe2 {[%clk
0:01:26.6]} 22... Nd7 {[%clk 0:01:53.4]} 23. Bd3 {[%clk 0:01:12.6]} 23... Nb6
{[%clk 0:01:40]} 24. Nb5 {[%clk 0:01:00.3]} 24... Rb7 {[%clk 0:01:37.6]} 25. c4
{[%clk 0:00:59.8]} 25... Bh4 {[%clk 0:01:30.4]} 26. Bf5 {[%clk 0:00:54]} 26...
Kh8 {[%clk 0:01:23.4]} 27. Rd2 {[%clk 0:00:53.4]} 27... Re7 {[%clk 0:01:12.6]}
28. Rc2 {[%clk 0:00:52.2]} 28... Na8 {[%clk 0:01:13.5]} 29. Qd3 {[%clk
0:00:50.7]} 29... g6 {[%clk 0:01:13.1]} 30. Be4 {[%clk 0:00:47.9]} 30... Nc7
{[%clk 0:01:13.5]} 31. Nc3 {[%clk 0:00:46]} 31... Na6 {[%clk 0:01:14.4]} 32. a3
{[%clk 0:00:46.6]} 32... Rb7 {[%clk 0:01:15.1]} 33. Nb5 {[%clk 0:00:44.8]} 33...
Nc7 {[%clk 0:01:15.5]} 34. Rd1 {[%clk 0:00:41.4]} 34... Qd7 {[%clk 0:01:06.6]}
35. Nc3 {[%clk 0:00:28.9]} 35... Rfb8 {[%clk 0:01:06.4]} 36. Ka2 {[%clk
0:00:28.3]} 36... Na6 {[%clk 0:01:06.7]} 37. Qd2 {[%clk 0:00:27.2]} 37... Ra8
{[%clk 0:01:03.2]} 38. Nb5 {[%clk 0:00:28.1]} 38... Nc7 {[%clk 0:00:59.7]} 39.
Bd3 {[%clk 0:00:29.3]} 39... a4 {[%clk 0:00:54.3]} 40. Rcc1 {[%clk 0:00:28.3]}
40... Na6 {[%clk 0:00:45.8]} 41. Kb1 {[%clk 0:00:25.9]} 41... Nc7 {[%clk
0:00:46.2]} 42. Qc2 {[%clk 0:00:25.1]} 42... Kg7 {[%clk 0:00:43.2]} 43. Rd2
{[%clk 0:00:24.5]} 43... Qd8 {[%clk 0:00:42]} 44. Qd1 {[%clk 0:00:24.6]} 44...
Qd7 {[%clk 0:00:41.2]} 45. Ka1 {[%clk 0:00:23.3]} 45... Qd8 {[%clk 0:00:41.9]}
46. Nc3 {[%clk 0:00:22.6]} 46... Qd7 {[%clk 0:00:41]} 47. Bc2 {[%clk 0:00:23.9]}
47... Rba7 {[%clk 0:00:40.4]} 48. Bd3 {[%clk 0:00:16]} 48... Ra5 {[%clk
0:00:34.5]} 49. Nb5 {[%clk 0:00:16.9]} 49... Rb8 {[%clk 0:00:24.6]} 50. Rg2
{[%clk 0:00:17.9]} 50... Rb6 {[%clk 0:00:20.9]} 51. g5 {[%clk 0:00:17.6]} 51...
Nxb5 {[%clk 0:00:20.7]} 52. cxb5 {[%clk 0:00:18.2]} 52... Qh3 {[%clk 0:00:22.6]}
53. Qe2 {[%clk 0:00:13.6]} 53... Ra7 {[%clk 0:00:22.7]} 54. Rg4 {[%clk
0:00:12.9]} 54... Re7 {[%clk 0:00:17.1]} 55. Rc2 {[%clk 0:00:13]} 55... Rb8
{[%clk 0:00:12.7]} 56. Ka2 {[%clk 0:00:13.8]} 56... c4 {[%clk 0:00:12.7]} 57.
Rxc4 {[%clk 0:00:12.8]} 57... Rxb5 {[%clk 0:00:13.8]} 58. Rxa4 {[%clk
0:00:12.5]} 58... Rxd5 {[%clk 0:00:14.8]} 59. Be4 {[%clk 0:00:13.7]} 59... Rd4
{[%clk 0:00:09.1]} 60. Rxd4 {[%clk 0:00:11.6]} 60... exd4 {[%clk 0:00:11]} 61.
Qd2 {[%clk 0:00:11.9]} 61... Rxe4 {[%clk 0:00:10.1]} 62. Rxh4 {[%clk 0:00:11.6]}
62... Qxh4 {[%clk 0:00:11.7]} 63. fxe4 {[%clk 0:00:13.2]} 63... Qxg5 {[%clk
0:00:12.5]} 64. Qxd4+ {[%clk 0:00:14.8]} 64... Qe5 {[%clk 0:00:11.2]} 65. Qd3
{[%clk 0:00:15.2]} 65... Qf6 {[%clk 0:00:08.7]} 66. Qf3 {[%clk 0:00:14.4]} 66...
g5 {[%clk 0:00:07.8]} 67. a4 {[%clk 0:00:13.2]} 67... Qe6+ {[%clk 0:00:08.3]}
68. Ka3 {[%clk 0:00:14.2]} 68... Qc4 {[%clk 0:00:08.7]} 69. b3 {[%clk
0:00:14.1]} 69... Qc5+ {[%clk 0:00:09.4]} 70. Ka2 {[%clk 0:00:13.8]} 70... Qe3
{[%clk 0:00:08.8]} 71. Qg4 {[%clk 0:00:13.4]} 71... Qd2+ {[%clk 0:00:04.7]} 72.
Ka3 {[%clk 0:00:14]} 72... Qc1+ {[%clk 0:00:04.9]} 73. Kb4 {[%clk 0:00:14.6]}
73... Qc5# {[%clk 0:00:05.8]} 0-1

[Event "*** Titled Tuesday 3|2 Blitz"]
[Site "Chess.com"]
[Date "2016.10.04"]
[Round "1"]
[White "FearNoEvil12"]
[Black "Semetey"]
[Result "1-0"]
[WhiteElo "2047"]
[BlackElo "2404"]
[TimeControl "180+2"]
[EndTime "11:12:36 PDT"]
[Termination "FearNoEvil12 won by checkmate"]

1. e4 {[%clk 0:03:01.9]} 1... d6 {[%clk 0:03:00.7]} 2. Nc3 {[%clk 0:02:59.9]}
2... Nf6 {[%clk 0:02:56.2]} 3. f4 {[%clk 0:03:00.6]} 3... c5 {[%clk 0:02:56.2]}
4. Nf3 {[%clk 0:03:00.3]} 4... g6 {[%clk 0:02:57.1]} 5. Bc4 {[%clk 0:03:01.7]}
5... Bg7 {[%clk 0:02:58.1]} 6. f5 {[%clk 0:03:02.8]} 6... gxf5 {[%clk
0:02:50.9]} 7. d3 {[%clk 0:03:04]} 7... fxe4 {[%clk 0:02:49]} 8. dxe4 {[%clk
0:03:05]} 8... Bg4 {[%clk 0:02:47]} 9. O-O {[%clk 0:03:04.8]} 9... Nc6 {[%clk
0:02:47.5]} 10. Bg5 {[%clk 0:03:05]} 10... O-O {[%clk 0:02:33.4]} 11. Qe1 {[%clk
0:03:01.3]} 11... Nd4 {[%clk 0:02:30.3]} 12. Nxd4 {[%clk 0:02:39.8]} 12... cxd4
{[%clk 0:02:30.9]} 13. Nd5 {[%clk 0:02:34.3]} 13... Nxd5 {[%clk 0:02:28.4]} 14.
Bxd5 {[%clk 0:02:32.5]} 14... Qd7 {[%clk 0:02:13.6]} 15. Qg3 {[%clk 0:02:27.7]}
15... Bh5 {[%clk 0:02:12.4]} 16. Bh6 {[%clk 0:02:11]} 16... Bg6 {[%clk 0:02:13]}
17. Bxg7 {[%clk 0:02:11.9]} 17... Kxg7 {[%clk 0:02:13.9]} 18. Rad1 {[%clk
0:02:09]} 18... e6 {[%clk 0:02:10.4]} 19. Bb3 {[%clk 0:02:08.4]} 19... e5 {[%clk
0:02:11.4]} 20. c3 {[%clk 0:02:00.8]} 20... dxc3 {[%clk 0:02:06.1]} 21. bxc3
{[%clk 0:02:01.3]} 21... Rad8 {[%clk 0:02:06]} 22. Bd5 {[%clk 0:01:58.6]} 22...
b6 {[%clk 0:01:59.1]} 23. c4 {[%clk 0:01:58.9]} 23... f5 {[%clk 0:01:48.4]} 24.
exf5 {[%clk 0:01:47.2]} 24... Rxf5 {[%clk 0:01:49.4]} 25. Rxf5 {[%clk
0:01:48.7]} 25... Qxf5 {[%clk 0:01:50.4]} 26. Rf1 {[%clk 0:01:49.4]} 26... Qc2
{[%clk 0:01:43.3]} 27. Qg5 {[%clk 0:01:32.5]} 27... Rd7 {[%clk 0:01:36.3]} 28.
Qf6+ {[%clk 0:01:29.7]} 28... Kh6 {[%clk 0:01:35.6]} 29. h4 {[%clk 0:01:29.8]}
29... Qe2 {[%clk 0:01:23.5]} 30. Rf3 {[%clk 0:01:26.9]} 30... e4 {[%clk
0:01:14.5]} 31. Qf8+ {[%clk 0:00:56]} 31... Kh5 {[%clk 0:01:07.3]} 32. Rf5+
{[%clk 0:00:17.8]} 32... Bxf5 {[%clk 0:00:51.3]} 33. Qxf5+ {[%clk 0:00:17]}
33... Kxh4 {[%clk 0:00:52.6]} 34. Qh3+ {[%clk 0:00:14.7]} 34... Kg5 {[%clk
0:00:52.8]} 35. Qxd7 {[%clk 0:00:16.3]} 35... Qe3+ {[%clk 0:00:51.8]} 36. Kh2
{[%clk 0:00:15.6]} 36... Qf4+ {[%clk 0:00:53.1]} 37. Kg1 {[%clk 0:00:11.9]}
37... Qc1+ {[%clk 0:00:53]} 38. Kf2 {[%clk 0:00:12]} 38... e3+ {[%clk
0:00:52.7]} 39. Kf3 {[%clk 0:00:11.4]} 39... Qd2 {[%clk 0:00:51.3]} 40. Qg4+
{[%clk 0:00:10.3]} 40... Kf6 {[%clk 0:00:52.4]} 41. Qf4+ {[%clk 0:00:11.3]}
41... Kg7 {[%clk 0:00:52.7]} 42. Qxe3 {[%clk 0:00:13.2]} 42... Qd1+ {[%clk
0:00:52.9]} 43. Qe2 {[%clk 0:00:13.1]} 43... Qd4 {[%clk 0:00:53.2]} 44. Qe7+
{[%clk 0:00:12.4]} 44... Kh6 {[%clk 0:00:54.6]} 45. Qe6+ {[%clk 0:00:12.5]}
45... Kh5 {[%clk 0:00:53.7]} 46. Qh3+ {[%clk 0:00:11.6]} 46... Kg5 {[%clk
0:00:54.7]} 47. Qg3+ {[%clk 0:00:12.3]} 47... Kf5 {[%clk 0:00:56]} 48. Qh3+
{[%clk 0:00:09]} 48... Kf6 {[%clk 0:00:57.3]} 49. Qh6+ {[%clk 0:00:08.8]} 49...
Ke7 {[%clk 0:00:57.5]} 50. Qxh7+ {[%clk 0:00:09.7]} 50... Kd8 {[%clk 0:00:58.9]}
51. Qe4 {[%clk 0:00:10.8]} 51... Qc3+ {[%clk 0:00:59.6]} 52. Kf4 {[%clk
0:00:11.7]} 52... Qf6+ {[%clk 0:01:00.4]} 53. Qf5 {[%clk 0:00:11]} 53... Qd4+
{[%clk 0:01:01.6]} 54. Kg5 {[%clk 0:00:11.1]} 54... Qg7+ {[%clk 0:01:02.6]} 55.
Qg6 {[%clk 0:00:11.3]} 55... Qe5+ {[%clk 0:01:03.9]} 56. Kh6 {[%clk 0:00:11.8]}
56... Qh8+ {[%clk 0:01:05]} 57. Kg5 {[%clk 0:00:10.9]} 57... Qe5+ {[%clk
0:01:05.9]} 58. Qf5 {[%clk 0:00:12.2]} 58... Qg7+ {[%clk 0:01:06.8]} 59. Qg6
{[%clk 0:00:13.4]} 59... Qe5+ {[%clk 0:01:07.8]} 60. Qf5 {[%clk 0:00:14.2]}
60... Qg7+ {[%clk 0:01:08.6]} 61. Kh4 {[%clk 0:00:14.4]} 61... Qh6+ {[%clk
0:01:06.7]} 62. Qh5 {[%clk 0:00:13]} 62... Qf4+ {[%clk 0:01:07.4]} 63. Qg4
{[%clk 0:00:13.9]} 63... Qh6+ {[%clk 0:01:08.3]} 64. Kg3 {[%clk 0:00:14.1]}
64... Qe3+ {[%clk 0:01:09.5]} 65. Kh2 {[%clk 0:00:15]} 65... Qe5+ {[%clk
0:01:10.8]} 66. g3 {[%clk 0:00:15]} 66... Qb2+ {[%clk 0:01:11.1]} 67. Kh3 {[%clk
0:00:15.8]} 67... Qe5 {[%clk 0:00:58.6]} 68. Qg8+ {[%clk 0:00:13.5]} 68... Kd7
{[%clk 0:01:00]} 69. Qg4+ {[%clk 0:00:13.2]} 69... Kd8 {[%clk 0:01:01.2]} 70.
Qf4 {[%clk 0:00:14.6]} 70... Qe2 {[%clk 0:00:45.1]} 71. g4 {[%clk 0:00:13.5]}
71... Qd3+ {[%clk 0:00:45]} 72. Kh4 {[%clk 0:00:14.2]} 72... Qh7+ {[%clk
0:00:45.9]} 73. Kg3 {[%clk 0:00:13.6]} 73... Qd3+ {[%clk 0:00:46.8]} 74. Qf3
{[%clk 0:00:14.8]} 74... Qd4 {[%clk 0:00:47.2]} 75. g5 {[%clk 0:00:13.3]} 75...
Qg1+ {[%clk 0:00:47.4]} 76. Kf4 {[%clk 0:00:12.1]} 76... Qd4+ {[%clk 0:00:48.1]}
77. Qe4 {[%clk 0:00:13]} 77... Qd2+ {[%clk 0:00:49.3]} 78. Kf5 {[%clk
0:00:13.2]} 78... Qxa2 {[%clk 0:00:47.7]} 79. g6 {[%clk 0:00:12.2]} 79... Qf2+
{[%clk 0:00:48.5]} 80. Qf4 {[%clk 0:00:12.8]} 80... Qc5 {[%clk 0:00:48]} 81. g7
{[%clk 0:00:11.5]} 81... Qc8+ {[%clk 0:00:49.6]} 82. Kf6 {[%clk 0:00:11.8]}
82... Kc7 {[%clk 0:00:47.7]} 83. g8=Q {[%clk 0:00:11]} 83... Qd7 {[%clk
0:00:49.1]} 84. Qf7 {[%clk 0:00:11.1]} 84... Qxf7+ {[%clk 0:00:47.4]} 85. Bxf7
{[%clk 0:00:11.8]} 85... a5 {[%clk 0:00:48.9]} 86. Qe4 {[%clk 0:00:11.4]} 86...
a4 {[%clk 0:00:49.3]} 87. Bd5 {[%clk 0:00:12.1]} 87... b5 {[%clk 0:00:49.6]} 88.
Qe7+ {[%clk 0:00:12.9]} 88... Kb6 {[%clk 0:00:50.9]} 89. Qb7+ {[%clk 0:00:13]}
89... Kc5 {[%clk 0:00:52]} 90. Qxb5+ {[%clk 0:00:14.3]} 90... Kd4 {[%clk
0:00:53.4]} 91. Qxa4 {[%clk 0:00:15.1]} 91... Kc5 {[%clk 0:00:54.8]} 92. Qb5+
{[%clk 0:00:15.6]} 92... Kd4 {[%clk 0:00:55.7]} 93. Qc6 {[%clk 0:00:17.2]} 93...
Kc3 {[%clk 0:00:56.8]} 94. Qxd6 {[%clk 0:00:18.7]} 94... Kd4 {[%clk 0:00:58.2]}
95. Qe5+ {[%clk 0:00:19.1]} 95... Kc5 {[%clk 0:00:59.4]} 96. Bf7+ {[%clk
0:00:20.5]} 96... Kb6 {[%clk 0:01:00.5]} 97. c5+ {[%clk 0:00:21.2]} 97... Kb7
{[%clk 0:01:02]} 98. Qd6 {[%clk 0:00:21.9]} 98... Kc8 {[%clk 0:01:03.1]} 99.
Be6+ {[%clk 0:00:21.8]} 99... Kb7 {[%clk 0:01:04.1]} 100. Bd5+ {[%clk
0:00:23.2]} 100... Kc8 {[%clk 0:01:05.2]} 101. Qc6+ {[%clk 0:00:23.7]} 101...
Kd8 {[%clk 0:01:06.3]} 102. Qb6+ {[%clk 0:00:23.7]} 102... Kd7 {[%clk
0:01:07.3]} 103. Be6+ {[%clk 0:00:24.4]} 103... Ke8 {[%clk 0:01:05.3]} 104. Qb8#
{[%clk 0:00:25.7]} 1-0

[Event "*** Titled Tuesday 3|2 Blitz"]
[Site "Chess.com"]
[Date "2016.10.04"]
[Round "2"]
[White "promen1999"]
[Black "Baggio95"]
[Result "1/2-1/2"]
[WhiteElo "2313"]
[BlackElo "2363"]
[TimeControl "180+2"]
[EndTime "11:15:56 PDT"]
[Termination "Game drawn by agreement"]

1. Nf3 {[%clk 0:02:58.5]} 1... Nf6 {[%clk 0:02:55.4]} 2. g3 {[%clk 0:02:58.1]}
2... g6 {[%clk 0:02:53.3]} 3. b3 {[%clk 0:02:58.7]} 3... Bg7 {[%clk 0:02:47.1]}
4. Bb2 {[%clk 0:02:59.2]} 4... c5 {[%clk 0:02:43.8]} 5. c4 {[%clk 0:02:53.4]}
5... d6 {[%clk 0:02:38.8]} 6. d4 {[%clk 0:02:49.4]} 6... Ne4 {[%clk 0:02:27.2]}
7. Bg2 {[%clk 0:02:13.2]} 7... Qa5+ {[%clk 0:02:25.9]} 8. Nbd2 {[%clk
0:02:13.1]} 8... Nxd2 {[%clk 0:02:24.9]} 9. Qxd2 {[%clk 0:02:11]} 9... Qxd2+
{[%clk 0:02:23.4]} 10. Kxd2 {[%clk 0:02:11.6]} 10... Nc6 {[%clk 0:02:14.9]} 11.
e3 {[%clk 0:02:02.7]} 11... Bg4 {[%clk 0:02:09.5]} 1/2-1/2

[Event "*** Titled Tuesday 3|2 Blitz"]
[Site "Chess.com"]
[Date "2016.10.04"]
[Round "2"]
[White "Lali-Rustavi"]
[Black "daro94"]
[Result "0-1"]
[WhiteElo "1828"]
[BlackElo "2638"]
[TimeControl "180+2"]
[EndTime "11:16:57 PDT"]
[Termination "daro94 won by resignation"]

1. c4 {[%clk 0:03:01.9]} 1... Nf6 {[%clk 0:02:47]} 2. Nc3 {[%clk 0:03:01]} 2...
e5 {[%clk 0:02:46.4]} 3. g3 {[%clk 0:03:01.9]} 3... d5 {[%clk 0:02:46.7]} 4.
cxd5 {[%clk 0:03:02.2]} 4... Nxd5 {[%clk 0:02:48.6]} 5. Bg2 {[%clk 0:03:02.5]}
5... Nb6 {[%clk 0:02:50]} 6. d3 {[%clk 0:03:01.7]} 6... Be7 {[%clk 0:02:50.9]}
7. Nf3 {[%clk 0:03:02.2]} 7... Nc6 {[%clk 0:02:51.9]} 8. O-O {[%clk 0:03:03.4]}
8... O-O {[%clk 0:02:53.2]} 9. a3 {[%clk 0:03:04.7]} 9... Be6 {[%clk 0:02:50.9]}
10. b4 {[%clk 0:03:05.1]} 10... a5 {[%clk 0:02:42.4]} 11. b5 {[%clk 0:03:04.8]}
11... Nd4 {[%clk 0:02:43.4]} 12. Nxd4 {[%clk 0:02:58.7]} 12... exd4 {[%clk
0:02:43.7]} 13. Na4 {[%clk 0:02:39.1]} 13... Bd5 {[%clk 0:02:43.9]} 14. Nxb6
{[%clk 0:02:38.4]} 14... cxb6 {[%clk 0:02:44.6]} 15. a4 {[%clk 0:02:32.2]} 15...
Bxg2 {[%clk 0:02:39.7]} 16. Kxg2 {[%clk 0:02:31]} 16... Qd5+ {[%clk 0:02:41.6]}
17. Kg1 {[%clk 0:02:31.7]} 17... Rfe8 {[%clk 0:02:43]} 18. Bf4 {[%clk
0:02:15.5]} 18... Bc5 {[%clk 0:02:38.6]} 19. Rb1 {[%clk 0:01:58.9]} 19... Re6
{[%clk 0:02:39]} 20. Re1 {[%clk 0:01:52.8]} 20... Rae8 {[%clk 0:02:39.1]} 21.
Qd2 {[%clk 0:01:44]} 21... Bb4 {[%clk 0:02:39.3]} 22. Rxb4 {[%clk 0:01:41.7]}
22... axb4 {[%clk 0:02:40.6]} 23. Qxb4 {[%clk 0:01:42.6]} 23... Rxe2 {[%clk
0:02:39.2]} 24. Rc1 {[%clk 0:01:32.6]} 24... Qf3 {[%clk 0:02:33]} 25. Qxd4
{[%clk 0:01:29]} 25... Re1+ {[%clk 0:02:33.3]} 0-1

[Event "*** Titled Tuesday 3|2 Blitz"]
[Site "Chess.com"]
[Date "2016.10.04"]
[Round "2"]
[White "Hieronymus00"]
[Black "macko06"]
[Result "0-1"]
[WhiteElo "2169"]
[BlackElo "2120"]
[TimeControl "180+2"]
[EndTime "11:17:30 PDT"]
[Termination "macko06 won by resignation"]

1. e4 {[%clk 0:03:02]} 1... e6 {[%clk 0:03:01.1]} 2. d4 {[%clk 0:03:02.4]} 2...
d5 {[%clk 0:03:01.5]} 3. Nc3 {[%clk 0:03:04]} 3... Nf6 {[%clk 0:03:01.8]} 4. Bg5
{[%clk 0:03:01.7]} 4... Be7 {[%clk 0:03:01.1]} 5. e5 {[%clk 0:03:01.5]} 5...
Nfd7 {[%clk 0:03:02.7]} 6. h4 {[%clk 0:03:02.5]} 6... h6 {[%clk 0:03:03.6]} 7.
Bxe7 {[%clk 0:02:57.5]} 7... Qxe7 {[%clk 0:03:05.5]} 8. Qg4 {[%clk 0:02:58.5]}
8... O-O {[%clk 0:03:05.8]} 9. f4 {[%clk 0:02:52.5]} 9... a6 {[%clk 0:03:03.3]}
10. O-O-O {[%clk 0:02:51.7]} 10... c5 {[%clk 0:03:04.1]} 11. Nf3 {[%clk
0:02:52.2]} 11... Nc6 {[%clk 0:03:04.5]} 12. Qh3 {[%clk 0:02:28.5]} 12... f6
{[%clk 0:02:54.1]} 13. dxc5 {[%clk 0:01:50.9]} 13... fxe5 {[%clk 0:02:52.5]} 14.
fxe5 {[%clk 0:01:45.2]} 14... Ndxe5 {[%clk 0:02:53.4]} 15. Nxe5 {[%clk
0:01:43.9]} 15... Nxe5 {[%clk 0:02:54.5]} 16. Qg3 {[%clk 0:01:40.4]} 16... Qf6
{[%clk 0:02:52.9]} 17. Bd3 {[%clk 0:01:35.4]} 17... Qf4+ {[%clk 0:02:51.7]} 18.
Qxf4 {[%clk 0:01:35.6]} 18... Rxf4 {[%clk 0:02:52.8]} 19. Rde1 {[%clk
0:01:31.5]} 19... Nxd3+ {[%clk 0:02:50.8]} 20. cxd3 {[%clk 0:01:31.7]} 20... Bd7
{[%clk 0:02:50.7]} 21. Kd2 {[%clk 0:01:29.3]} 21... Rc8 {[%clk 0:02:49.4]} 22.
Ke3 {[%clk 0:01:22.2]} 22... Rg4 {[%clk 0:02:48.6]} 23. d4 {[%clk 0:01:18.5]}
23... Rxg2 {[%clk 0:02:49.2]} 24. Nd1 {[%clk 0:01:14.7]} 24... Rf8 {[%clk
0:02:46.2]} 25. Ref1 {[%clk 0:01:14.7]} 25... Rg3+ {[%clk 0:02:46.2]} 26. Kd2
{[%clk 0:01:13.7]} 26... Rxf1 {[%clk 0:02:39.9]} 27. Rxf1 {[%clk 0:01:14.5]}
27... Rg4 {[%clk 0:02:41.6]} 28. Ke3 {[%clk 0:01:07.8]} 28... Re4+ {[%clk
0:02:40.4]} 0-1

[Event "*** Titled Tuesday 3|2 Blitz"]
[Site "Chess.com"]
[Date "2016.10.04"]
[Round "2"]
[White "Kouzari"]
[Black "CheckThis4"]
[Result "0-1"]
[WhiteElo "2440"]
[BlackElo "2349"]
[TimeControl "180+2"]
[EndTime "11:18:08 PDT"]
[Termination "CheckThis4 won by resignation"]

1. e4 {[%clk 0:03:02]} 1... c5 {[%clk 0:02:58.8]} 2. c3 {[%clk 0:03:02.3]} 2...
e6 {[%clk 0:02:57.6]} 3. d4 {[%clk 0:03:01.6]} 3... d5 {[%clk 0:02:58.6]} 4. e5
{[%clk 0:03:03.1]} 4... Nc6 {[%clk 0:02:59.1]} 5. Nf3 {[%clk 0:03:04.6]} 5...
Bd7 {[%clk 0:03:00]} 6. Bd3 {[%clk 0:03:06.5]} 6... cxd4 {[%clk 0:02:59.1]} 7.
cxd4 {[%clk 0:03:08.4]} 7... Qb6 {[%clk 0:03:00]} 8. O-O {[%clk 0:03:09.9]} 8...
Nxd4 {[%clk 0:02:59]} 9. Nxd4 {[%clk 0:03:11.8]} 9... Qxd4 {[%clk 0:02:59.2]}
10. Nc3 {[%clk 0:03:13.7]} 10... a6 {[%clk 0:02:54.7]} 11. Qe2 {[%clk
0:03:11.5]} 11... Ne7 {[%clk 0:02:48.3]} 12. Kh1 {[%clk 0:03:05.8]} 12... Nc6
{[%clk 0:02:47.2]} 13. f4 {[%clk 0:03:07]} 13... Nb4 {[%clk 0:02:46.5]} 14. Bb1
{[%clk 0:03:07.1]} 14... Qc4 {[%clk 0:02:47]} 15. Qf3 {[%clk 0:02:39]} 15... d4
{[%clk 0:02:45.9]} 16. Ne4 {[%clk 0:02:36.4]} 16... d3 {[%clk 0:02:37]} 17. a3
{[%clk 0:02:35.2]} 17... Nc2 {[%clk 0:02:31.8]} 18. Bxc2 {[%clk 0:02:29.9]}
18... dxc2 {[%clk 0:02:32.3]} 19. Bd2 {[%clk 0:02:08.7]} 19... Bc6 {[%clk
0:02:28.2]} 20. Rfe1 {[%clk 0:02:00.8]} 20... O-O-O {[%clk 0:02:04.9]} 21. Bc3
{[%clk 0:01:56.3]} 21... Rd3 {[%clk 0:02:02.9]} 22. Qe2 {[%clk 0:01:38.7]} 22...
Qxe4 {[%clk 0:01:46.1]} 23. Qxe4 {[%clk 0:01:39.2]} 23... Bxe4 {[%clk 0:01:48]}
24. Rxe4 {[%clk 0:01:39.8]} 24... Rd1+ {[%clk 0:01:48.8]} 25. Re1 {[%clk
0:01:40.9]} 25... Rxa1 {[%clk 0:01:48.1]} 26. Rxa1 {[%clk 0:01:41.2]} 26... Bc5
{[%clk 0:01:48.7]} 27. Rc1 {[%clk 0:01:35.2]} 27... Rd8 {[%clk 0:01:46.9]} 0-1

[Event "*** Titled Tuesday 3|2 Blitz"]
[Site "Chess.com"]
[Date "2016.10.04"]
[Round "2"]
[White "biostatistician"]
[Black "RobertoJBM"]
[Result "1/2-1/2"]
[WhiteElo "2438"]
[BlackElo "2516"]
[TimeControl "180+2"]
[EndTime "11:18:14 PDT"]
[Termination "Game drawn by agreement"]

1. d4 {[%clk 0:03:02]} 1... d5 {[%clk 0:03:00.6]} 2. Nf3 {[%clk 0:03:03.7]} 2...
c6 {[%clk 0:03:02]} 3. c4 {[%clk 0:03:05.6]} 3... Nf6 {[%clk 0:03:02.3]} 4. cxd5
{[%clk 0:03:06.7]} 4... cxd5 {[%clk 0:03:03.2]} 5. Nc3 {[%clk 0:03:08.6]} 5...
Nc6 {[%clk 0:03:04.2]} 6. Bf4 {[%clk 0:03:10]} 6... Qb6 {[%clk 0:03:05.7]} 7.
Na4 {[%clk 0:03:09.7]} 7... Qa5+ {[%clk 0:03:06.4]} 8. Bd2 {[%clk 0:03:10.9]}
8... Qc7 {[%clk 0:03:06.9]} 9. e3 {[%clk 0:03:12.4]} 9... Bd7 {[%clk 0:03:06.4]}
10. Rc1 {[%clk 0:03:13.3]} 10... Rc8 {[%clk 0:03:06.9]} 11. Nc5 {[%clk
0:03:12.1]} 11... e6 {[%clk 0:03:07.3]} 12. Bb5 {[%clk 0:03:12.1]} 12... a6
{[%clk 0:03:05.8]} 13. Nxd7 {[%clk 0:03:08.5]} 13... Nxd7 {[%clk 0:03:03.9]} 14.
Bxc6 {[%clk 0:03:09.4]} 14... bxc6 {[%clk 0:03:03.7]} 15. O-O {[%clk 0:03:10.9]}
15... Bd6 {[%clk 0:03:04.3]} 16. Qa4 {[%clk 0:03:10.4]} 16... Qb6 {[%clk
0:03:05.3]} 17. b3 {[%clk 0:03:03.4]} 17... O-O {[%clk 0:03:05.8]} 18. Rc2
{[%clk 0:03:03.4]} 18... Qb5 {[%clk 0:03:06.5]} 19. Qxb5 {[%clk 0:03:01.5]}
19... cxb5 {[%clk 0:03:08.4]} 20. Rfc1 {[%clk 0:03:02.3]} 20... Rxc2 {[%clk
0:03:03.2]} 21. Rxc2 {[%clk 0:03:04.2]} 21... Nb8 {[%clk 0:03:04.1]} 22. Kf1
{[%clk 0:02:59.9]} 22... f6 {[%clk 0:03:04.6]} 23. Ke2 {[%clk 0:02:56.9]} 23...
Kf7 {[%clk 0:03:06.1]} 24. a4 {[%clk 0:02:36.7]} 24... bxa4 {[%clk 0:03:03.9]}
25. bxa4 {[%clk 0:02:37.3]} 25... Ke7 {[%clk 0:03:05.4]} 26. Rb2 {[%clk
0:02:31.8]} 26... Nd7 {[%clk 0:03:00.1]} 27. Rb7 {[%clk 0:02:29.5]} 27... Rb8
{[%clk 0:02:58.3]} 28. Ra7 {[%clk 0:02:30.6]} 28... Rb6 {[%clk 0:02:57.9]} 29.
Kd3 {[%clk 0:02:23.8]} 29... Bb8 {[%clk 0:02:58.3]} 30. Ra8 {[%clk 0:02:22.9]}
30... Kd6 {[%clk 0:02:55.1]} 31. Ba5 {[%clk 0:02:16.5]} 31... Kc6 {[%clk
0:02:42.7]} 32. Bxb6 {[%clk 0:02:15.3]} 32... Kxb6 {[%clk 0:02:44.6]} 33. Kc3
{[%clk 0:01:36.4]} 33... Kb7 {[%clk 0:02:44.4]} 34. Rxb8+ {[%clk 0:01:37.5]}
34... Nxb8 {[%clk 0:02:45.2]} 35. Kb4 {[%clk 0:01:39.4]} 35... Kb6 {[%clk
0:02:46.2]} 36. a5+ {[%clk 0:01:33.7]} 36... Kc7 {[%clk 0:02:47.1]} 37. Nd2
{[%clk 0:01:31.4]} 37... Nc6+ {[%clk 0:02:47.9]} 38. Ka4 {[%clk 0:01:32.5]}
38... e5 {[%clk 0:02:49.2]} 39. Nb3 {[%clk 0:01:33.3]} 39... exd4 {[%clk
0:02:50.4]} 40. Nxd4 {[%clk 0:01:17.9]} 40... Nxd4 {[%clk 0:02:43.2]} 41. exd4
{[%clk 0:01:19.8]} 1/2-1/2